bitfinex-derivatives/quotes_BTCF0:USTF0_20260314
["timestamp","ask_amount","ask_price","bid_price","bid_amount"]
[1773487514062,0.0014,70728.0,70720.0,0.042414]
[1773487515877,0.0014,70728.0,70710.0,0.07386018]
[1773487515878,0.0410387,70727.0,70710.0,0.07386018]
[1773487516171,0.0014,70728.0,70711.0,0.042419]
[1773487516172,0.07386018,70720.0,70711.0,0.042419]
[1773487516473,0.0014,70719.0,70711.0,0.042419]
[1773487520978,0.0014,70719.0,70712.0,0.042418]
[1773487532082,0.0014,70718.0,70705.0,0.00898]
[1773487533178,0.0014,70718.0,70712.0,0.042418]
[1773487534682,0.0014,70718.0,70705.0,0.00898]
[1773487535484,0.0014,70718.0,70712.0,0.042418]
[1773487537382,0.0014,70718.0,70713.0,0.042418]
[1773487540484,0.051389,70729.0,70708.0,0.07386018]
[1773487540673,0.0014,70728.0,70708.0,0.07386018]
[1773487541284,0.0014,70727.0,70708.0,0.07386018]
[1773487541689,0.051389,70729.0,70708.0,0.07386018]
[1773487541885,0.0014,70728.0,70708.0,0.07386018]
[1773487542283,0.0014,70727.0,70708.0,0.07386018]
[1773487542681,0.042409,70728.0,70715.0,0.042416]
[1773487542881,0.0014,70727.0,70715.0,0.042416]
[1773487543278,0.0014,70726.0,70716.0,0.042416]
[1773487543677,0.042409,70728.0,70716.0,0.042416]
[1773487543977,0.0014,70727.0,70716.0,0.042416]
[1773487544278,0.0014,70726.0,70716.0,0.042416]
[1773487544679,0.042409,70728.0,70716.0,0.042416]
[1773487544877,0.0014,70727.0,70716.0,0.042416]
[1773487545287,0.0014,70726.0,70716.0,0.042416]
[1773487545789,0.0014,70725.0,70716.0,0.042416]
[1773487546178,0.042409,70728.0,70716.0,0.042416]
[1773487546378,0.0014,70727.0,70716.0,0.042416]
[1773487546779,0.0014,70726.0,70716.0,0.042416]
[1773487547190,0.042409,70728.0,70716.0,0.042416]
[1773487547391,0.0014,70727.0,70716.0,0.042416]
[1773487547775,0.042409,70728.0,70716.0,0.042416]
[1773487547975,0.0014,70726.0,70719.0,0.042414]
[1773487549187,0.0014,70726.0,70708.0,0.07386018]
[1773487549387,0.00898,70729.0,70708.0,0.07386018]
[1773487549592,0.0014,70725.0,70708.0,0.07386018]
[1773487550088,0.0014,70724.0,70708.0,0.07386018]
[1773487551090,0.0014,70724.0,70720.0,0.042414]
[1773487553492,0.0014,70724.0,70708.0,0.07386018]
[1773487554992,0.0014,70724.0,70720.0,0.042414]
[1773487555286,0.00898,70729.0,70708.0,0.07386018]
[1773487555487,0.0014,70728.0,70724.0,0.042411]
[1773487557289,0.0014,70728.0,70725.0,0.042411]
[1773487557496,0.12725335,70742.0,70727.0,0.042409]
[1773487557497,0.0014,70729.0,70727.0,0.042409]
[1773487558094,0.0014,70729.0,70725.0,0.042411]
[1773487558995,0.0014,70729.0,70726.0,0.04241]
[1773487562593,0.042403,70738.0,70726.0,0.04241]
[1773487562800,0.0014,70737.0,70726.0,0.04241]
[1773487565709,0.00898,70741.0,70720.0,0.07384093]
[1773487565710,0.00053741,70736.0,70728.0,0.042409]
[1773487566290,0.00898,70741.0,70729.0,0.042408]
[1773487566490,0.0014,70735.0,70729.0,0.042408]
[1773487568004,0.0014,70734.0,70720.0,0.07384093]
[1773487568202,0.0014,70733.0,70720.0,0.07384093]
[1773487568407,0.0014,70733.0,70731.0,0.042407]
[1773487568611,0.0014,70734.0,70731.0,0.042407]
[1773487568898,0.00898,70741.0,70720.0,0.07384093]
[1773487569099,0.0014,70740.0,70720.0,0.07384093]
[1773487569301,0.0014,70739.0,70720.0,0.07384093]
[1773487570010,0.0014,70739.0,70732.0,0.042406]
[1773487570207,0.0014,70738.0,70732.0,0.042406]
[1773487570403,0.0014,70738.0,70734.0,0.042405]
[1773487570601,0.0014,70739.0,70734.0,0.042405]
[1773487571002,0.042398,70746.0,70734.0,0.042405]
[1773487571203,0.0014,70745.0,70734.0,0.042405]
[1773487572213,0.03646087,70745.0,70734.0,0.042405]
[1773487573814,0.0014,70745.0,70720.0,0.07384093]
[1773487574109,0.0014,70744.0,70730.0,0.07384093]
[1773487574314,0.0014,70743.0,70730.0,0.07384093]
[1773487574514,0.0014,70742.0,70730.0,0.07384093]
[1773487574810,0.0014,70741.0,70730.0,0.07384093]
[1773487575109,0.0014,70741.0,70724.0,0.0014]
[1773487575110,0.042396,70751.0,70738.0,0.042403]
[1773487575308,0.0014,70750.0,70738.0,0.042403]
[1773487576715,0.0014,70750.0,70739.0,0.042402]
[1773487576916,0.0014,70750.0,70737.0,0.042403]
[1773487578612,0.0014,70750.0,70738.0,0.042403]
[1773487583020,0.0014,70750.0,70739.0,0.042402]
[1773487585310,0.0014,70750.0,70741.0,0.042401]
[1773487599427,0.0014,70750.0,70724.0,0.0014]
[1773487599428,0.0014,70750.0,70730.0,0.07384093]
[1773487599834,0.0014,70750.0,70744.0,0.042399]
[1773487600235,0.0014,70750.0,70745.0,0.042399]
[1773487600631,0.0014,70749.0,70745.0,0.042399]
[1773487600836,0.0014,70748.0,70745.0,0.042399]
[1773487601035,0.0014,70747.0,70745.0,0.042399]
[1773487601736,0.042392,70757.0,70745.0,0.042399]
[1773487601737,0.0014,70746.0,70745.0,0.042399]
[1773487602035,0.0014,70746.0,70743.0,0.0424]
[1773487602233,0.0014,70745.0,70743.0,0.0424]
[1773487602436,0.042392,70756.0,70745.0,0.042399]
[1773487602622,0.0014,70755.0,70745.0,0.042399]
[1773487604437,0.0014,70755.0,70730.0,0.07524093]
[1773487604438,0.0014,70759.0,70740.0,0.07384093]
[1773487604635,0.042392,70758.0,70743.0,0.0424]
[1773487604830,0.042392,70757.0,70743.0,0.0424]
[1773487605338,0.042392,70757.0,70741.0,0.042401]
[1773487605727,0.042393,70756.0,70741.0,0.042401]
[1773487605932,0.042393,70756.0,70742.0,0.0424]
[1773487606244,0.042393,70755.0,70742.0,0.0424]
[1773487609745,0.042392,70757.0,70735.0,0.0014]
[1773487610946,0.042392,70757.0,70743.0,0.0424]
[1773487613954,0.042392,70757.0,70735.0,0.0014]
[1773487614154,0.043791,70759.0,70745.0,0.042399]
[1773487614948,0.042392,70758.0,70745.0,0.042399]
[1773487615653,0.041142,70758.0,70745.0,0.042399]
[1773487617641,0.0014,70759.0,70740.0,0.07384093]
[1773487618550,0.0014,70758.0,70749.0,0.042396]
[1773487618742,0.042389,70763.0,70750.0,0.042396]
[1773487618946,0.0014,70762.0,70750.0,0.042396]
[1773487619146,0.03319778,70759.0,70742.0,0.042401]
[1773487619345,0.03319778,70759.0,70735.0,0.0014]
[1773487619346,0.042392,70757.0,70743.0,0.0424]
[1773487619546,0.0014,70756.0,70744.0,0.042399]
[1773487620053,0.0014,70756.0,70745.0,0.042399]
[1773487620551,0.0014,70756.0,70746.0,0.042398]
[1773487620758,0.00093937,70756.0,70740.0,0.07384093]
[1773487621951,0.00093937,70756.0,70746.0,0.042398]
[1773487626555,0.04239,70760.0,70747.0,0.042397]
[1773487626753,0.04239,70760.0,70748.0,0.042397]
[1773487627455,0.0014,70763.0,70740.0,0.07380019]
[1773487627456,0.042389,70762.0,70749.0,0.042396]
[1773487627959,0.043789,70763.0,70750.0,0.042395]
[1773487628551,0.043789,70763.0,70751.0,0.042395]
[1773487629753,0.0014,70763.0,70751.0,0.042395]
[1773487630156,0.043788,70763.0,70751.0,0.042395]
[1773487633955,0.042389,70762.0,70749.0,0.042396]
[1773487637359,0.0014,70763.0,70751.0,0.042395]
[1773487637768,0.043788,70763.0,70751.0,0.042395]
[1773487639164,0.0014,70762.0,70750.0,0.07380019]
[1773487639364,0.0014,70761.0,70757.0,0.042392]
[1773487639560,0.0014,70760.0,70757.0,0.042392]
[1773487639864,0.0014,70759.0,70757.0,0.042392]
[1773487640165,0.0014,70760.0,70755.0,0.042393]
[1773487643272,0.0014,70768.0,70755.0,0.042393]
[1773487643573,0.0014,70768.0,70756.0,0.042392]
[1773487645768,0.0014,70768.0,70750.0,0.07380019]
[1773487645967,0.0014,70768.0,70746.0,0.0014]
[1773487646166,0.042386,70767.0,70753.0,0.042394]
[1773487647073,0.042386,70767.0,70746.0,0.0014]
[1773487648075,0.0014,70768.0,70756.0,0.042392]
[1773487653881,0.042386,70767.0,70755.0,0.042392]
[1773487654380,0.0014,70768.0,70755.0,0.042392]
[1773487655987,0.03500737,70768.0,70745.0,0.042398]
[1773487656187,0.07380019,70760.0,70745.0,0.042398]
[1773487656383,0.0014,70759.0,70745.0,0.042398]
[1773487657078,0.043791,70759.0,70745.0,0.042398]
[1773487657479,0.043791,70759.0,70746.0,0.042398]
[1773487658980,0.042392,70758.0,70744.0,0.042399]
[1773487659182,0.042393,70755.0,70741.0,0.042401]
[1773487659484,0.042392,70757.0,70743.0,0.0424]
[1773487661989,0.042392,70757.0,70744.0,0.042399]
[1773487663991,0.03346573,70757.0,70730.0,0.07380019]
[1773487664177,0.03346573,70757.0,70734.0,0.0014]
[1773487664986,0.042393,70755.0,70730.0,0.07380019]
[1773487665191,0.042393,70756.0,70742.0,0.0424]
[1773487666887,0.042394,70753.0,70734.0,0.001]
[1773487667093,0.0014,70752.0,70741.0,0.042401]
[1773487669697,0.0014,70752.0,70742.0,0.0424]
[1773487670094,0.0014,70752.0,70740.0,0.042402]
[1773487670292,0.0014,70752.0,70741.0,0.042401]
[1773487670494,0.0014,70752.0,70742.0,0.0424]
[1773487670794,0.0014,70752.0,70740.0,0.042402]
[1773487670989,0.043795,70752.0,70740.0,0.042402]
[1773487671198,0.0014,70751.0,70740.0,0.042402]
[1773487671393,0.0014,70751.0,70741.0,0.042401]
[1773487673195,0.0014,70751.0,70742.0,0.042401]
[1773487673593,0.0014,70751.0,70733.0,0.0014]
[1773487673794,0.0014,70751.0,70741.0,0.042401]
[1773487673994,0.0014,70750.0,70741.0,0.042401]
[1773487675695,0.0014,70750.0,70733.0,0.0014]
[1773487675887,0.11759619,70750.0,70733.0,0.002]
[1773487676296,0.043796,70750.0,70733.0,0.002]
[1773487676491,0.0014,70750.0,70739.0,0.042402]
[1773487676898,0.0014,70750.0,70730.0,0.07380019]
[1773487677205,0.0014,70750.0,70740.0,0.042402]
[1773487678298,0.03383159,70762.0,70730.0,0.07380019]
[1773487678506,0.03383159,70759.0,70743.0,0.0424]
[1773487678798,0.0014,70758.0,70743.0,0.0424]
[1773487678995,0.042393,70756.0,70743.0,0.0424]
[1773487679197,0.042393,70756.0,70727.0,0.0014]
[1773487679198,0.07380019,70753.0,70727.0,0.0014]
[1773487679403,0.1500121,70753.0,70739.0,0.042402]
[1773487679606,0.07621191,70753.0,70740.0,0.042402]
[1773487681204,0.0014,70752.0,70740.0,0.042402]
[1773487684507,0.0014,70752.0,70730.0,0.07380019]
[1773487684806,0.0014,70752.0,70743.0,0.0424]
[1773487685394,0.0014,70752.0,70744.0,0.042399]
[1773487685599,0.16303626,70764.0,70732.0,0.042407]
[1773487685806,0.042391,70759.0,70745.0,0.042398]
[1773487686000,0.042391,70759.0,70746.0,0.042398]
[1773487687212,0.042389,70762.0,70750.0,0.042395]
[1773487687399,0.0014,70758.0,70750.0,0.042395]
[1773487688008,0.0014,70757.0,70740.0,0.07380346]
[1773487688209,0.0014,70757.0,70748.0,0.042397]
[1773487688512,0.0014,70756.0,70748.0,0.042397]
[1773487688714,0.0014,70755.0,70748.0,0.042397]
[1773487692612,0.0428279,70769.0,70753.0,0.042394]
[1773487692817,0.0428279,70769.0,70740.0,0.07380346]
[1773487692818,0.0014,70768.0,70740.0,0.07380346]
[1773487693111,0.0014,70767.0,70750.0,0.07380346]
[1773487693312,0.0014,70767.0,70757.0,0.042391]
[1773487694408,0.31112,70777.0,70757.0,0.042391]
[1773487694409,0.042379,70778.0,70757.0,0.07380346]
[1773487694718,0.0014,70776.0,70761.0,0.042389]
[1773487695426,0.043781,70776.0,70761.0,0.042389]
[1773487696008,0.044781,70776.0,70761.0,0.042389]
[1773487696519,0.043781,70776.0,70761.0,0.042389]
[1773487696919,0.0014,70776.0,70750.0,0.07380346]
[1773487697112,0.042382,70774.0,70760.0,0.04239]
[1773487697528,0.042383,70772.0,70750.0,0.07380346]
[1773487697931,0.042383,70772.0,70749.0,0.0014]
[1773487698134,0.042383,70772.0,70743.0,0.16852719]
[1773487698135,0.10781093,70770.0,70750.0,0.001]
[1773487698426,0.042385,70768.0,70754.0,0.042393]
[1773487698831,0.0014,70767.0,70754.0,0.042393]
[1773487700831,0.0014,70767.0,70757.0,0.042392]
[1773487701330,0.0014,70767.0,70741.0,0.16964253]
[1773487701331,0.0014,70767.0,70741.0,0.0014]
[1773487702727,0.0014,70767.0,70741.0,0.0034]
[1773487702928,0.0014,70767.0,70754.0,0.042393]
[1773487703822,0.0014,70767.0,70741.0,0.0034]
[1773487703823,0.042389,70763.0,70741.0,0.0044]
[1773487704028,0.0760987,70759.0,70747.0,0.042398]
[1773487704225,0.0014,70758.0,70747.0,0.042398]
[1773487704534,0.0014,70758.0,70746.0,0.042398]
[1773487704730,0.0014,70758.0,70747.0,0.042397]
[1773487705128,0.0014,70758.0,70745.0,0.042399]
[1773487705333,0.0014,70758.0,70730.0,0.24204599]
[1773487705733,0.0014,70758.0,70747.0,0.042397]
[1773487707537,0.042392,70757.0,70744.0,0.042399]
[1773487708935,0.03512385,70758.0,70745.0,0.042398]
[1773487709234,0.03512385,70758.0,70729.0,0.16831095]
[1773487709430,0.042393,70756.0,70743.0,0.0424]
[1773487711334,0.03384303,70755.0,70743.0,0.0424]
[1773487712939,0.03387824,70754.0,70741.0,0.042401]
[1773487714532,0.042394,70753.0,70741.0,0.042401]
[1773487714839,0.042394,70753.0,70740.0,0.042402]
[1773487715544,0.0014,70752.0,70740.0,0.042402]
[1773487716041,0.043795,70752.0,70739.0,0.042402]
[1773487716843,0.043795,70752.0,70740.0,0.042402]
[1773487717044,0.0014,70752.0,70741.0,0.042401]
[1773487719844,0.0014,70752.0,70730.0,0.07380346]
[1773487720147,0.042392,70757.0,70730.0,0.07380346]
[1773487720345,0.0014,70756.0,70730.0,0.07380346]
[1773487720948,0.0014,70756.0,70743.0,0.0424]
[1773487721444,0.043793,70756.0,70743.0,0.0424]
[1773487723146,0.043793,70756.0,70730.0,0.07380346]
[1773487723147,0.0014,70756.0,70745.0,0.042399]
[1773487728354,0.0014,70756.0,70743.0,0.0424]
[1773487728848,0.042393,70755.0,70743.0,0.0424]
[1773487729043,0.07621233,70755.0,70743.0,0.0424]
[1773487731062,0.0014,70756.0,70730.0,0.07520346]
[1773487732955,0.0014,70756.0,70744.0,0.042399]
[1773487738254,0.0014,70756.0,70732.0,0.042406]
[1773487738650,0.00898,70763.0,70732.0,0.042406]
[1773487738846,0.0014,70762.0,70749.0,0.042396]
[1773487739146,0.043789,70762.0,70749.0,0.042396]
[1773487740157,0.043789,70762.0,70732.0,0.043406]
[1773487740350,0.043789,70762.0,70732.0,0.042406]
[1773487740550,0.043789,70762.0,70740.0,0.07380346]
[1773487740956,0.043789,70762.0,70749.0,0.042396]
[1773487742562,0.04239,70761.0,70749.0,0.042396]
[1773487743362,0.04239,70760.0,70747.0,0.042398]
[1773487743863,0.04239,70760.0,70748.0,0.042397]
[1773487746867,0.043789,70762.0,70748.0,0.042397]
[1773487747762,0.043789,70762.0,70749.0,0.042396]
[1773487748067,0.0014,70762.0,70732.0,0.21071695]
[1773487748265,0.0014,70762.0,70750.0,0.042395]
[1773487751276,0.0014,70762.0,70751.0,0.042395]
[1773487751770,0.0014,70762.0,70752.0,0.042394]
[1773487752274,0.0014,70762.0,70753.0,0.042394]
[1773487753376,0.0014,70762.0,70751.0,0.042395]
[1773487754084,0.043789,70762.0,70749.0,0.042396]
[1773487754685,0.043789,70762.0,70750.0,0.042396]
[1773487762588,0.0014,70762.0,70751.0,0.042395]
[1773487763388,0.0014,70762.0,70740.0,0.07380359]
[1773487763588,0.03421042,70761.0,70736.0,0.0014]
[1773487764783,0.03421042,70761.0,70750.0,0.042396]
[1773487765592,0.03421042,70761.0,70751.0,0.042395]
[1773487765793,0.0014,70762.0,70751.0,0.042395]
[1773487767695,0.0014,70762.0,70752.0,0.042394]
[1773487771695,0.0014,70762.0,70736.0,0.0014]
[1773487771696,0.03482202,70761.0,70736.0,0.0014]
[1773487771899,0.07721202,70760.0,70747.0,0.042397]
[1773487772096,0.10862561,70760.0,70748.0,0.042397]
[1773487772298,0.03482202,70760.0,70748.0,0.042397]
[1773487774099,0.03478435,70759.0,70735.0,0.16831095]
[1773487774293,0.03478435,70758.0,70733.0,0.16831095]
[1773487774594,0.03478435,70756.0,70745.0,0.042399]
[1773487774986,0.0014,70755.0,70745.0,0.042399]
[1773487775194,0.0361872,70755.0,70745.0,0.042399]
[1773487776783,0.03477878,70754.0,70732.0,0.16831095]
[1773487776991,0.10854684,70750.0,70742.0,0.0424]
[1773487777296,0.03474325,70750.0,70742.0,0.0424]
[1773487777894,0.0014,70749.0,70742.0,0.0424]
[1773487778792,0.03611984,70749.0,70729.0,0.16831095]
[1773487778988,0.03611984,70749.0,70740.0,0.042402]
[1773487782307,0.03468672,70743.0,70722.0,0.16831095]
[1773487782502,0.03468672,70737.0,70718.0,0.00898]
[1773487782803,0.03468672,70737.0,70710.0,0.24211454]
[1773487782804,0.043804,70736.0,70710.0,0.24211454]
[1773487783204,0.042406,70735.0,70722.0,0.042412]
[1773487783503,0.042406,70735.0,70722.0,0.043412]
[1773487784702,0.0014,70736.0,70722.0,0.001]
[1773487784894,0.03580799,70736.0,70718.0,0.00898]
[1773487785197,0.042406,70734.0,70721.0,0.042413]
[1773487787804,0.043805,70736.0,70723.0,0.042412]
[1773487792213,0.042405,70736.0,70723.0,0.042412]
[1773487792512,0.0014,70735.0,70723.0,0.042412]
[1773487792710,0.0014,70735.0,70725.0,0.042411]
[1773487792921,0.042406,70734.0,70721.0,0.042413]
[1773487793416,0.0014,70735.0,70722.0,0.042412]
[1773487793912,0.03449833,70731.0,70715.0,0.02694]
[1773487794214,0.042404,70737.0,70707.0,0.042421]
[1773487794215,0.03450575,70724.0,70707.0,0.042421]
[1773487794415,0.03590575,70723.0,70707.0,0.042421]
[1773487794611,0.042414,70721.0,70707.0,0.042421]
[1773487794821,0.0014,70720.0,70707.0,0.042421]
[1773487795010,0.0014,70720.0,70705.0,0.042423]
[1773487795317,0.07520359,70720.0,70705.0,0.042423]
[1773487795517,0.07520359,70720.0,70707.0,0.00898]
[1773487796017,0.042416,70718.0,70707.0,0.00898]
[1773487796209,0.07520359,70720.0,70707.0,0.00898]
[1773487796609,0.042415,70719.0,70707.0,0.00898]
[1773487797015,0.07688907,70719.0,70707.0,0.00898]
[1773487798207,0.03447407,70719.0,70707.0,0.00898]
[1773487798411,0.0014,70718.0,70707.0,0.051401]
[1773487799210,0.00898,70723.0,70707.0,0.00898]
[1773487799413,0.042409,70728.0,70714.0,0.042417]
[1773487799618,0.0014,70727.0,70714.0,0.042417]
[1773487799918,0.04381,70727.0,70714.0,0.042417]
[1773487800910,0.04241,70727.0,70714.0,0.051397]
[1773487801110,0.04241,70727.0,70706.0,0.00015799]
[1773487801111,0.042419,70712.0,70686.0,0.0014]
[1773487801420,0.0014,70711.0,70686.0,0.0014]
[1773487802224,0.00015799,70710.0,70686.0,0.0014]
[1773487802821,0.00015799,70710.0,70686.0,0.0034]
[1773487803024,0.00015799,70710.0,70698.0,0.042427]
[1773487803410,0.00015799,70710.0,70690.0,0.00899]
[1773487803411,0.042422,70707.0,70694.0,0.042429]
[1773487803616,0.042422,70707.0,70690.0,0.00899]
[1773487803617,0.00898,70707.0,70690.0,0.01039]
[1773487804615,0.00898,70707.0,70697.0,0.042427]
[1773487807217,0.00898,70707.0,70696.0,0.042428]
[1773487808018,0.00898,70707.0,70691.0,0.0014]
[1773487809025,0.00898,70707.0,70695.0,0.042429]
[1773487812827,0.042423,70705.0,70690.0,0.00899]
[1773487813033,0.042423,70705.0,70690.0,0.01039]
[1773487813433,0.07877107,70704.0,70692.0,0.04243]
[1773487813633,0.03634707,70704.0,70692.0,0.04243]
[1773487815140,0.07391358,70702.0,70690.0,0.00899]
[1773487815332,0.00015799,70701.0,70690.0,0.00899]
[1773487815939,0.00015799,70701.0,70690.0,0.051422]
[1773487817833,0.00015799,70701.0,70692.0,0.04243]
[1773487818142,0.0014,70703.0,70691.0,0.042431]
[1773487822138,0.0014,70703.0,70690.0,0.00899]
[1773487822445,0.0014,70703.0,70692.0,0.04243]
[1773487824140,0.0014,70703.0,70688.0,0.043833]
[1773487824141,0.07391358,70702.0,70688.0,0.043833]
[1773487824544,0.07391358,70702.0,70688.0,0.042433]
[1773487824738,0.04243,70694.0,70681.0,0.0007074]
[1773487824945,0.04243,70694.0,70686.0,0.00899]
[1773487825642,0.0014,70695.0,70686.0,0.00899]
[1773487825842,0.043829,70695.0,70686.0,0.00899]
[1773487827149,0.0014,70695.0,70686.0,0.00899]
[1773487844463,0.00899,70702.0,70686.0,0.00899]
[1773487844757,0.03556752,70699.0,70686.0,0.00899]
[1773487844964,0.03556752,70696.0,70686.0,0.00899]
[1773487845959,0.03544359,70695.0,70686.0,0.00899]
[1773487847058,0.0014,70698.0,70686.0,0.00899]
[1773487847664,0.042427,70699.0,70686.0,0.00899]
[1773487847860,0.0014,70698.0,70686.0,0.00899]
[1773487848257,0.0014,70697.0,70686.0,0.00899]
[1773487848763,0.0014,70696.0,70686.0,0.00899]
[1773487849266,0.0014,70695.0,70686.0,0.00899]
[1773487849662,0.042427,70699.0,70686.0,0.00899]
[1773487849860,0.0014,70698.0,70686.0,0.00899]
[1773487850266,0.0014,70697.0,70686.0,0.051424]
[1773487850765,0.0014,70696.0,70686.0,0.051424]
[1773487851166,0.042427,70699.0,70686.0,0.051424]
[1773487851366,0.0014,70698.0,70686.0,0.051424]
[1773487851569,0.042427,70699.0,70686.0,0.051424]
[1773487851760,0.0014,70698.0,70686.0,0.051424]
[1773487852360,0.0014,70699.0,70686.0,0.00899]
[1773487853566,0.0014,70699.0,70688.0,0.042433]
[1773487866980,0.00899,70702.0,70686.0,0.00899]
[1773487867177,0.0014,70701.0,70693.0,0.04243]
[1773487867380,0.0014,70700.0,70693.0,0.04243]
[1773487867584,0.042423,70705.0,70693.0,0.04243]
[1773487867884,0.0014,70704.0,70693.0,0.04243]
[1773487873089,0.042423,70705.0,70693.0,0.04243]
[1773487873282,0.0014,70704.0,70693.0,0.04243]
[1773487873597,0.042423,70705.0,70693.0,0.04243]
[1773487873789,0.0014,70704.0,70693.0,0.04243]
[1773487874288,0.042423,70705.0,70693.0,0.04243]
[1773487874488,0.0014,70704.0,70693.0,0.04243]
[1773487874983,0.0014,70703.0,70693.0,0.04243]
[1773487875287,0.042423,70705.0,70693.0,0.04243]
[1773487875481,0.0014,70704.0,70693.0,0.04243]
[1773487875790,0.042423,70705.0,70693.0,0.04243]
[1773487875987,0.0014,70704.0,70693.0,0.04243]
[1773487876185,0.00898,70706.0,70691.0,0.00899]
[1773487876384,0.0014,70705.0,70696.0,0.042428]
[1773487876681,0.0014,70705.0,70691.0,0.00899]
[1773487876682,0.0014,70704.0,70682.0,0.0014]
[1773487876886,0.0014,70704.0,70694.0,0.042429]
[1773487877587,0.07531593,70704.0,70692.0,0.04243]
[1773487877780,0.15168793,70702.0,70694.0,0.00898]
[1773487877976,0.035347,70701.0,70694.0,0.00898]
[1773487879090,0.042426,70700.0,70681.0,0.0007074]
[1773487879288,0.07773193,70700.0,70681.0,0.0007074]
[1773487879990,0.03530593,70699.0,70688.0,0.042433]
[1773487881187,0.03530593,70699.0,70688.0,0.04009961]
[1773487881388,0.042428,70696.0,70681.0,0.0007074]
[1773487881990,0.0014,70695.0,70681.0,0.0007074]
[1773487882391,0.0014,70695.0,70688.0,0.042433]
[1773487884291,0.0014,70694.0,70688.0,0.042433]
[1773487888604,0.0014,70697.0,70681.0,0.0007074]
[1773487888900,0.0014,70697.0,70688.0,0.042433]
[1773487889399,0.0014,70696.0,70688.0,0.042433]
[1773487890493,0.0014,70695.0,70688.0,0.042433]
[1773487890689,0.0014,70694.0,70688.0,0.042433]
[1773487890894,0.00036891,70694.0,70688.0,0.042433]
[1773487892301,0.00036891,70694.0,70681.0,0.0007074]
[1773487892302,0.00036891,70694.0,70686.0,0.042434]
[1773487892503,0.00036891,70694.0,70684.0,0.042435]
[1773487892705,0.00036891,70694.0,70682.0,0.042437]
[1773487892894,0.07391593,70692.0,70681.0,0.0007074]
[1773487893197,0.03487591,70689.0,70679.0,0.00899]
[1773487894404,0.0014,70688.0,70679.0,0.00899]
[1773487913112,0.043833,70688.0,70679.0,0.00899]
[1773487913505,0.03467887,70686.0,70662.0,0.16920923]
[1773487913703,0.07391593,70680.0,70669.0,0.042444]
[1773487913899,0.0014,70679.0,70660.0,0.07391593]
[1773487914099,0.0014,70678.0,70661.0,1.5]
[1773487914301,0.0014,70677.0,70661.0,1.5]
[1773487914505,0.0014,70678.0,70662.0,0.00899]
[1773487914705,0.0014,70678.0,70663.0,0.0014]
[1773487915006,0.0014,70678.0,70674.0,0.042441]
[1773487919916,0.0014,70678.0,70672.0,0.042442]
[1773487920306,0.0014,70678.0,70662.0,0.00899]
[1773487920507,0.03709676,70678.0,70667.0,0.03073299]
[1773487923214,0.042438,70681.0,70668.0,0.042445]
[1773487923412,0.0014,70680.0,70670.0,0.07391593]
[1773487923610,0.0014,70680.0,70663.0,1.5]
[1773487925016,0.0014,70680.0,70674.0,0.042441]
[1773487925222,0.00899,70691.0,70670.0,0.07391593]
[1773487925412,0.0014,70690.0,70681.0,0.042437]
[1773487927005,0.0014,70690.0,70682.0,0.042436]
[1773487928019,0.0014,70690.0,70683.0,0.042436]
[1773487930023,0.0014,70689.0,70683.0,0.042436]
[1773487930221,0.0014,70689.0,70674.0,0.00899]
[1773487930923,0.00899,70691.0,70674.0,0.00899]
[1773487931111,0.0014,70690.0,70674.0,0.00899]
[1773487931310,0.0014,70691.0,70680.0,0.07392894]
[1773487931826,0.0014,70691.0,70687.0,0.042433]
[1773487932622,0.0014,70692.0,70687.0,0.042433]
[1773487933634,0.0014,70693.0,70687.0,0.042433]
[1773487933933,0.0014,70696.0,70680.0,0.07392894]
[1773487934731,0.0014,70696.0,70676.0,0.0014]
[1773487934917,0.0014,70696.0,70680.0,0.00899]
[1773487935525,0.0014,70696.0,70686.0,0.042434]
[1773487935828,0.01039,70696.0,70686.0,0.042434]
[1773487936928,0.01039,70696.0,70687.0,0.042433]
[1773487942629,0.0014,70697.0,70680.0,0.08291894]
[1773487942934,0.0014,70697.0,70680.0,0.07392894]
[1773487943135,0.042424,70704.0,70680.0,0.07392894]
[1773487943328,0.0014,70703.0,70691.0,0.042431]
[1773487944133,0.0014,70703.0,70691.0,0.051421]
[1773487946338,0.08696677,70706.0,70693.0,0.04243]
[1773487946535,0.043823,70705.0,70693.0,0.04243]
[1773487946925,0.0014,70704.0,70693.0,0.04243]
[1773487947135,0.043824,70704.0,70691.0,0.051421]
[1773487949438,0.042424,70704.0,70691.0,0.051421]
[1773487949628,0.0014,70703.0,70691.0,0.051421]
[1773487951236,0.0014,70703.0,70692.0,0.04243]
[1773487959943,0.0014,70703.0,70691.0,0.00899]
[1773487960642,0.0014,70702.0,70697.0,0.042427]
[1773487962946,0.0014,70701.0,70699.0,0.042427]
[1773487963331,0.0014,70702.0,70699.0,0.042427]
[1773487963748,0.00899,70706.0,70699.0,0.042427]
[1773487963938,0.0014,70702.0,70699.0,0.042427]
[1773487964245,0.00899,70706.0,70699.0,0.042427]
[1773487964447,0.0014,70702.0,70699.0,0.042427]
[1773487965138,0.00899,70706.0,70691.0,0.00899]
[1773487965334,0.03567277,70714.0,70691.0,0.00899]
[1773487965535,0.0014,70713.0,70702.0,0.042424]
[1773487965732,0.042417,70715.0,70703.0,0.042424]
[1773487965938,0.0014,70714.0,70703.0,0.042424]
[1773487966141,0.042417,70715.0,70703.0,0.042424]
[1773487966337,0.0014,70713.0,70703.0,0.042424]
[1773487966538,0.0014,70713.0,70701.0,0.042425]
[1773487966740,0.0014,70712.0,70702.0,0.042424]
[1773487967346,0.0014,70711.0,70702.0,0.042424]
[1773487970439,0.042418,70714.0,70702.0,0.042424]
[1773487970948,0.0014,70713.0,70702.0,0.042424]